[Event "Early-Titled-Tuesday-Blitz-August-29-2023"]
[Site "Chess.com"]
[Date "2023.08.29"]
[Round "2"]
[White "astralpulse"]
[Black "Angry_Twin"]
[Result "0-1"]
[WhiteElo "2624"]
[BlackElo "2958"]
[TimeControl "180+1"]
[EndTime "8:19:22 PDT"]
[Termination "Angry_Twin won on time"]

1. d4 {[%clk 0:02:59.9]} 1... Nf6 {[%clk 0:02:59.7]} 2. Nf3 {[%clk 0:02:59.2]}
2... d5 {[%clk 0:03:00]} 3. c4 {[%clk 0:02:58.6]} 3... e6 {[%clk 0:03:00.7]} 4.
Nc3 {[%clk 0:02:58.1]} 4... c6 {[%clk 0:03:00.5]} 5. cxd5 {[%clk 0:02:53.1]}
5... exd5 {[%clk 0:03:00.5]} 6. Bg5 {[%clk 0:02:49.6]} 6... Be7 {[%clk
0:02:57.9]} 7. e3 {[%clk 0:02:48.5]} 7... Bf5 {[%clk 0:02:57.5]} 8. Bd3 {[%clk
0:02:48.4]} 8... Bxd3 {[%clk 0:02:57.5]} 9. Qxd3 {[%clk 0:02:48.4]} 9... Nbd7
{[%clk 0:02:57.6]} 10. h3 {[%clk 0:02:46.1]} 10... O-O {[%clk 0:02:57.5]} 11.
Bf4 {[%clk 0:02:46.2]} 11... Re8 {[%clk 0:02:53.4]} 12. O-O {[%clk 0:02:44.6]}
12... Nf8 {[%clk 0:02:50.7]} 13. Ne5 {[%clk 0:02:36.3]} 13... N6d7 {[%clk
0:02:50.5]} 14. Nxd7 {[%clk 0:02:24.4]} 14... Qxd7 {[%clk 0:02:49.2]} 15. Rab1
{[%clk 0:02:23.2]} 15... a5 {[%clk 0:02:40.6]} 16. Na4 {[%clk 0:02:20.9]} 16...
Qd8 {[%clk 0:02:32.1]} 17. a3 {[%clk 0:02:13]} 17... Ne6 {[%clk 0:02:30.6]} 18.
Bg3 {[%clk 0:02:13.1]} 18... Bd6 {[%clk 0:02:30.6]} 19. Bxd6 {[%clk 0:02:08.4]}
19... Qxd6 {[%clk 0:02:31.5]} 20. Rbc1 {[%clk 0:02:08.1]} 20... g6 {[%clk
0:02:29.1]} 21. Nc5 {[%clk 0:02:05.1]} 21... Nxc5 {[%clk 0:02:25.2]} 22. Rxc5
{[%clk 0:02:05.2]} 22... f5 {[%clk 0:02:19.2]} 23. Qc3 {[%clk 0:02:00.8]} 23...
a4 {[%clk 0:02:14.8]} 24. Ra5 {[%clk 0:01:59.3]} 24... f4 {[%clk 0:02:11.9]} 25.
Rxa8 {[%clk 0:01:53.7]} 25... Rxa8 {[%clk 0:02:12.8]} 26. exf4 {[%clk
0:01:51.6]} 26... Qxf4 {[%clk 0:02:12]} 27. Re1 {[%clk 0:01:52]} 27... Rf8
{[%clk 0:02:09]} 28. Re2 {[%clk 0:01:45.5]} 28... Rf7 {[%clk 0:01:56.9]} 29. Qb4
{[%clk 0:01:20.2]} 29... Qc1+ {[%clk 0:01:48.3]} 30. Kh2 {[%clk 0:01:19.3]}
30... b5 {[%clk 0:01:31.5]} 31. Qd6 {[%clk 0:01:01.7]} 31... Qf4+ {[%clk
0:01:21.2]} 32. Qxf4 {[%clk 0:01:01.4]} 32... Rxf4 {[%clk 0:01:22.1]} 33. Rd2
{[%clk 0:01:01.9]} 33... Kf7 {[%clk 0:01:17.8]} 34. f3 {[%clk 0:01:02]} 34...
Ke6 {[%clk 0:01:17.3]} 35. Kg3 {[%clk 0:01:01.7]} 35... g5 {[%clk 0:01:17.6]}
36. Kf2 {[%clk 0:01:00.3]} 36... Kd6 {[%clk 0:01:16.5]} 37. Ke3 {[%clk
0:00:56.3]} 37... h5 {[%clk 0:01:08.1]} 38. g3 {[%clk 0:00:48.1]} 38... Rf8
{[%clk 0:01:02.6]} 39. h4 {[%clk 0:00:48.4]} 39... Re8+ {[%clk 0:00:29.9]} 40.
Kf2 {[%clk 0:00:33.3]} 40... gxh4 {[%clk 0:00:30.8]} 41. gxh4 {[%clk 0:00:33.3]}
41... b4 {[%clk 0:00:27.6]} 42. axb4 {[%clk 0:00:17.4]} 42... Rb8 {[%clk
0:00:27.4]} 43. Ke3 {[%clk 0:00:17.1]} 43... Rxb4 {[%clk 0:00:27.4]} 44. Rg2
{[%clk 0:00:17.8]} 44... Rb3+ {[%clk 0:00:15.5]} 45. Kf4 {[%clk 0:00:17.9]}
45... Rd3 {[%clk 0:00:15.7]} 46. Rg6+ {[%clk 0:00:17.7]} 46... Kc7 {[%clk
0:00:15.8]} 47. Ke5 {[%clk 0:00:10.3]} 47... Rxf3 {[%clk 0:00:15.4]} 48. Rg7+
{[%clk 0:00:08.4]} 48... Kb6 {[%clk 0:00:15.4]} 49. Rh7 {[%clk 0:00:08.7]} 49...
Rf2 {[%clk 0:00:15.6]} 50. Rxh5 {[%clk 0:00:03.8]} 50... Rxb2 {[%clk 0:00:15.5]}
51. Rh8 {[%clk 0:00:03.3]} 51... Kb7 {[%clk 0:00:12.2]} 52. Rh7+ {[%clk
0:00:03.3]} 52... Ka6 {[%clk 0:00:12.2]} 53. Rh8 {[%clk 0:00:03.1]} 53... Kb7
{[%clk 0:00:08]} 54. Rh7+ {[%clk 0:00:03.2]} 54... Kc8 {[%clk 0:00:07.9]} 55.
Rh8+ {[%clk 0:00:03.5]} 55... Kc7 {[%clk 0:00:06.8]} 56. Ra8 {[%clk 0:00:04]}
56... Ra2 {[%clk 0:00:05.6]} 57. h5 {[%clk 0:00:03.6]} 57... Rh2 {[%clk
0:00:05.5]} 58. Rxa4 {[%clk 0:00:02.3]} 58... Rxh5+ {[%clk 0:00:05.9]} 59. Ke6
{[%clk 0:00:03]} 59... Rh4 {[%clk 0:00:05.7]} 60. Ke5 {[%clk 0:00:03.3]} 60...
Re4+ {[%clk 0:00:05.8]} 61. Kf5 {[%clk 0:00:03.7]} 61... Kb6 {[%clk 0:00:06.5]}
62. Rb4+ {[%clk 0:00:01.8]} 62... Ka5 {[%clk 0:00:06.9]} 0-1

[Event "Early-Titled-Tuesday-Blitz-August-29-2023"]
[Site "Chess.com"]
[Date "2023.08.29"]
[Round "2"]
[White "Mindhunter08"]
[Black "Arteler"]
[Result "0-1"]
[WhiteElo "2450"]
[BlackElo "2211"]
[TimeControl "180+1"]
[EndTime "8:19:30 PDT"]
[Termination "Arteler won by checkmate"]

1. e4 {[%clk 0:03:00.9]} 1... e6 {[%clk 0:02:59.5]} 2. d4 {[%clk 0:03:00.8]}
2... d5 {[%clk 0:03:00.1]} 3. Nc3 {[%clk 0:03:01.5]} 3... Bb4 {[%clk 0:03:00.1]}
4. Ne2 {[%clk 0:03:01.7]} 4... dxe4 {[%clk 0:02:56.1]} 5. a3 {[%clk 0:03:02.3]}
5... Be7 {[%clk 0:02:56.1]} 6. Nxe4 {[%clk 0:03:02.6]} 6... Nf6 {[%clk
0:02:56.4]} 7. Nxf6+ {[%clk 0:03:02.6]} 7... Bxf6 {[%clk 0:02:57.3]} 8. Be3
{[%clk 0:03:02.6]} 8... c5 {[%clk 0:02:57.8]} 9. c3 {[%clk 0:02:50.4]} 9... cxd4
{[%clk 0:02:30.6]} 10. Nxd4 {[%clk 0:02:49.8]} 10... O-O {[%clk 0:02:28.6]} 11.
Be2 {[%clk 0:02:49.5]} 11... e5 {[%clk 0:02:17.5]} 12. Nb5 {[%clk 0:02:48]}
12... Qe7 {[%clk 0:02:15.4]} 13. Nxa7 {[%clk 0:02:27.9]} 13... Rd8 {[%clk
0:02:11]} 14. Qb3 {[%clk 0:02:23.7]} 14... Be6 {[%clk 0:02:10.7]} 15. Qb4 {[%clk
0:02:19.1]} 15... Qe8 {[%clk 0:01:49]} 16. O-O {[%clk 0:02:09.7]} 16... Bd5
{[%clk 0:01:33.1]} 17. c4 {[%clk 0:01:59.9]} 17... Nc6 {[%clk 0:01:32.9]} 18.
Nxc6 {[%clk 0:01:52.6]} 18... Bxc6 {[%clk 0:01:32.4]} 19. Rad1 {[%clk
0:01:53.4]} 19... Qe6 {[%clk 0:01:21.5]} 20. Qb6 {[%clk 0:01:43.1]} 20... Qf5
{[%clk 0:01:09.4]} 21. b4 {[%clk 0:01:18.4]} 21... Rxd1 {[%clk 0:01:02.4]} 22.
Rxd1 {[%clk 0:01:16.2]} 22... Qc2 {[%clk 0:01:02.8]} 23. Rd2 {[%clk 0:01:06.4]}
23... Qb1+ {[%clk 0:00:53.9]} 24. Rd1 {[%clk 0:01:05.1]} 24... Qc2 {[%clk
0:00:52.2]} 25. Rd2 {[%clk 0:01:05.4]} 25... Qb1+ {[%clk 0:00:49.4]} 26. Bd1
{[%clk 0:00:56.5]} 26... Ba4 {[%clk 0:00:35.4]} 27. Qxb7 {[%clk 0:00:51.2]}
27... Rf8 {[%clk 0:00:35.2]} 28. Qf3 {[%clk 0:00:44.5]} 28... e4 {[%clk
0:00:34.4]} 29. Qg4 {[%clk 0:00:28.4]} 29... h5 {[%clk 0:00:32.6]} 30. Qxh5
{[%clk 0:00:23.7]} 30... Rd8 {[%clk 0:00:32.9]} 31. Rxd8+ {[%clk 0:00:11.4]}
31... Bxd8 {[%clk 0:00:33.8]} 32. Qd5 {[%clk 0:00:11.2]} 32... Qxd1+ {[%clk
0:00:24.6]} 33. Qxd1 {[%clk 0:00:11.3]} 33... Bxd1 {[%clk 0:00:25.5]} 34. Kf1
{[%clk 0:00:04.3]} 34... Bb3 {[%clk 0:00:20.2]} 35. c5 {[%clk 0:00:04.7]} 35...
Ba4 {[%clk 0:00:20.8]} 36. Ke1 {[%clk 0:00:05]} 36... f6 {[%clk 0:00:18.7]} 37.
Kd2 {[%clk 0:00:05.4]} 37... Kf7 {[%clk 0:00:19.4]} 38. Kc3 {[%clk 0:00:06.1]}
38... Ke6 {[%clk 0:00:19.9]} 39. Kc4 {[%clk 0:00:06.9]} 39... Bc6 {[%clk
0:00:17.3]} 40. b5 {[%clk 0:00:06.5]} 40... Bd5+ {[%clk 0:00:18.2]} 41. Kb4
{[%clk 0:00:07.3]} 41... f5 {[%clk 0:00:11.1]} 42. a4 {[%clk 0:00:07.2]} 42...
Ke5 {[%clk 0:00:08.8]} 43. g3 {[%clk 0:00:06.8]} 43... g5 {[%clk 0:00:09]} 44.
a5 {[%clk 0:00:06.5]} 44... f4 {[%clk 0:00:09.6]} 45. Bd2 {[%clk 0:00:05.4]}
45... Kd4 {[%clk 0:00:08.5]} 46. Bc3+ {[%clk 0:00:03.9]} 46... Kd3 {[%clk
0:00:08.9]} 47. a6 {[%clk 0:00:03.5]} 47... e3 {[%clk 0:00:06.2]} 48. fxe3
{[%clk 0:00:02.1]} 48... f3 {[%clk 0:00:06.8]} 49. Be1 {[%clk 0:00:01.9]} 49...
Ke2 {[%clk 0:00:06.7]} 50. c6 {[%clk 0:00:02.5]} 50... Kxe1 {[%clk 0:00:05.9]}
51. a7 {[%clk 0:00:02.9]} 51... Be7+ {[%clk 0:00:05.5]} 52. Ka5 {[%clk
0:00:02.2]} 52... f2 {[%clk 0:00:05.6]} 53. a8=Q {[%clk 0:00:02.8]} 53... f1=Q
{[%clk 0:00:05.5]} 54. Kb6 {[%clk 0:00:03.5]} 54... Qc4 {[%clk 0:00:04.1]} 55.
Qa1+ {[%clk 0:00:03.6]} 55... Kf2 {[%clk 0:00:03.2]} 56. Qb2+ {[%clk 0:00:03.2]}
56... Kf3 {[%clk 0:00:03.2]} 57. c7 {[%clk 0:00:01.6]} 57... Qc5+ {[%clk
0:00:02.4]} 58. Ka5 {[%clk 0:00:01.7]} 58... Qxc7+ {[%clk 0:00:02.5]} 59. b6
{[%clk 0:00:02.5]} 59... Qc5+ {[%clk 0:00:01.5]} 60. Ka6 {[%clk 0:00:03.2]}
60... Bc4+ {[%clk 0:00:02.1]} 61. Kb7 {[%clk 0:00:03.8]} 61... Qd5+ {[%clk
0:00:02.7]} 62. Ka7 {[%clk 0:00:04.3]} 62... Qd7+ {[%clk 0:00:02.5]} 63. b7
{[%clk 0:00:04.9]} 63... Bc5+ {[%clk 0:00:03.4]} 64. Ka8 {[%clk 0:00:05.5]}
64... Bd5 {[%clk 0:00:03.8]} 65. Qf6+ {[%clk 0:00:04.5]} 65... Kg2 {[%clk
0:00:04.4]} 66. Qb2+ {[%clk 0:00:04.2]} 66... Kh3 {[%clk 0:00:04.9]} 67. Qh8+
{[%clk 0:00:04.5]} 67... Kg2 {[%clk 0:00:04.5]} 68. Qb2+ {[%clk 0:00:04.6]}
68... Kg1 {[%clk 0:00:05]} 69. Qb1+ {[%clk 0:00:04]} 69... Kxh2 {[%clk
0:00:05.5]} 70. Qc2+ {[%clk 0:00:03.8]} 70... Kxg3 {[%clk 0:00:05.6]} 71. Qb2
{[%clk 0:00:02.1]} 71... Qd8# {[%clk 0:00:04.4]} 0-1

[Event "Early-Titled-Tuesday-Blitz-August-29-2023"]
[Site "Chess.com"]
[Date "2023.08.29"]
[Round "2"]
[White "mbojan"]
[Black "ArtemDyachuk"]
[Result "1-0"]
[WhiteElo "2892"]
[BlackElo "2579"]
[TimeControl "180+1"]
[EndTime "8:19:42 PDT"]
[Termination "mbojan won by checkmate"]

1. Nf3 {[%clk 0:03:00.9]} 1... Nf6 {[%clk 0:02:58.5]} 2. g3 {[%clk 0:03:01.1]}
2... b5 {[%clk 0:02:58.1]} 3. Bg2 {[%clk 0:03:01.6]} 3... Bb7 {[%clk 0:02:58.3]}
4. O-O {[%clk 0:03:02.2]} 4... c5 {[%clk 0:02:57.2]} 5. d3 {[%clk 0:03:02.8]}
5... d5 {[%clk 0:02:56.5]} 6. Nbd2 {[%clk 0:03:02.8]} 6... e6 {[%clk 0:02:56.2]}
7. Re1 {[%clk 0:03:03.3]} 7... Be7 {[%clk 0:02:54.7]} 8. c3 {[%clk 0:03:03.9]}
8... O-O {[%clk 0:02:54.4]} 9. Qc2 {[%clk 0:02:56.9]} 9... Re8 {[%clk
0:02:42.8]} 10. e4 {[%clk 0:02:56.7]} 10... c4 {[%clk 0:02:33.6]} 11. dxc4
{[%clk 0:02:50.5]} 11... dxc4 {[%clk 0:02:27.6]} 12. a4 {[%clk 0:02:49.2]} 12...
a6 {[%clk 0:02:21.9]} 13. Nd4 {[%clk 0:02:43.6]} 13... e5 {[%clk 0:02:17.2]} 14.
Nf5 {[%clk 0:02:40.8]} 14... Bf8 {[%clk 0:02:16.9]} 15. b3 {[%clk 0:02:38.2]}
15... cxb3 {[%clk 0:01:34.8]} 16. Nxb3 {[%clk 0:02:33.5]} 16... Nc6 {[%clk
0:01:29.1]} 17. Rd1 {[%clk 0:02:31.1]} 17... Qc7 {[%clk 0:01:26.7]} 18. axb5
{[%clk 0:02:30.8]} 18... axb5 {[%clk 0:01:25.8]} 19. Rxa8 {[%clk 0:02:30.2]}
19... Rxa8 {[%clk 0:01:21]} 20. Bg5 {[%clk 0:02:14.5]} 20... Nd7 {[%clk
0:00:59.6]} 21. Qe2 {[%clk 0:02:14.3]} 21... h6 {[%clk 0:00:55.2]} 22. Qg4
{[%clk 0:01:40.6]} 22... Bc8 {[%clk 0:00:14.9]} 23. Nxh6+ {[%clk 0:01:32.4]}
23... gxh6 {[%clk 0:00:15]} 24. Bd8+ {[%clk 0:01:32.5]} 24... Bg7 {[%clk
0:00:10.6]} 25. Bxc7 {[%clk 0:01:32.3]} 25... Nc5 {[%clk 0:00:10.5]} 26. Qe2
{[%clk 0:01:05.9]} 26... Nxb3 {[%clk 0:00:10.2]} 27. Qxb5 {[%clk 0:01:06.3]}
27... Nba5 {[%clk 0:00:08.7]} 28. Bxa5 {[%clk 0:01:06.2]} 28... Nxa5 {[%clk
0:00:07.2]} 29. Rd8+ {[%clk 0:01:06.6]} 29... Kh7 {[%clk 0:00:07]} 30. Rxc8
{[%clk 0:01:07.2]} 30... Rxc8 {[%clk 0:00:05.3]} 31. Qxa5 {[%clk 0:01:07.8]}
31... Rb8 {[%clk 0:00:06.2]} 32. Bh3 {[%clk 0:01:07.1]} 32... Rb1+ {[%clk
0:00:06.4]} 33. Kg2 {[%clk 0:01:07.5]} 33... Bf6 {[%clk 0:00:06.5]} 34. Bf5+
{[%clk 0:01:08.4]} 34... Kg7 {[%clk 0:00:06.5]} 35. Qa3 {[%clk 0:01:06.9]} 35...
h5 {[%clk 0:00:06.2]} 36. h4 {[%clk 0:01:06.9]} 36... Rd1 {[%clk 0:00:05.7]} 37.
c4 {[%clk 0:01:06.6]} 37... Rd2 {[%clk 0:00:05.9]} 38. Qc3 {[%clk 0:01:04.5]}
38... Rd6 {[%clk 0:00:05.4]} 39. c5 {[%clk 0:01:04.8]} 39... Rc6 {[%clk
0:00:06.3]} 40. Bd7 {[%clk 0:01:05]} 40... Rc7 {[%clk 0:00:06.5]} 41. c6 {[%clk
0:01:05.6]} 41... Be7 {[%clk 0:00:07]} 42. Qxe5+ {[%clk 0:01:01.4]} 42... Bf6
{[%clk 0:00:07.5]} 43. Qxc7 {[%clk 0:00:18.9]} 43... Bd4 {[%clk 0:00:06.6]} 44.
Qf4 {[%clk 0:00:18.5]} 44... Bf6 {[%clk 0:00:07.5]} 45. c7 {[%clk 0:00:18.5]}
45... Be7 {[%clk 0:00:08.4]} 46. Qf5 {[%clk 0:00:18.3]} 46... Bd6 {[%clk
0:00:09.3]} 47. c8=Q {[%clk 0:00:18.1]} 47... f6 {[%clk 0:00:09.9]} 48. Qxh5
{[%clk 0:00:17.8]} 48... f5 {[%clk 0:00:08.8]} 49. Qxf5 {[%clk 0:00:17.1]} 49...
Be7 {[%clk 0:00:07.2]} 50. Ba4 {[%clk 0:00:16.1]} 50... Bd6 {[%clk 0:00:03.7]}
51. Qcd7+ {[%clk 0:00:15.4]} 51... Kh6 {[%clk 0:00:02.8]} 52. Qxd6+ {[%clk
0:00:15.6]} 52... Kg7 {[%clk 0:00:02.8]} 53. Qdg6+ {[%clk 0:00:14.8]} 53... Kh8
{[%clk 0:00:02.9]} 54. Qgh5+ {[%clk 0:00:15.1]} 54... Kg7 {[%clk 0:00:02.8]} 55.
Qfg4+ {[%clk 0:00:15.7]} 55... Kf8 {[%clk 0:00:02.9]} 56. Qhf5+ {[%clk
0:00:15.9]} 56... Ke7 {[%clk 0:00:03.1]} 57. Qg7+ {[%clk 0:00:14.9]} 57... Kd8
{[%clk 0:00:02.4]} 58. Qgf8+ {[%clk 0:00:12.3]} 58... Kc7 {[%clk 0:00:02.3]} 59.
Bd1 {[%clk 0:00:12.4]} 59... Kb7 {[%clk 0:00:02.1]} 60. h5 {[%clk 0:00:13.3]}
60... Kc7 {[%clk 0:00:02.1]} 61. g4 {[%clk 0:00:14.2]} 61... Kc6 {[%clk
0:00:02.3]} 62. g5 {[%clk 0:00:15.1]} 62... Kc7 {[%clk 0:00:02.7]} 63. h6 {[%clk
0:00:16]} 63... Kc6 {[%clk 0:00:03.4]} 64. g6 {[%clk 0:00:16.9]} 64... Kc7
{[%clk 0:00:04.2]} 65. g7 {[%clk 0:00:17.8]} 65... Kc6 {[%clk 0:00:04.6]} 66. h7
{[%clk 0:00:18.7]} 66... Kc7 {[%clk 0:00:05.3]} 67. f4 {[%clk 0:00:19.6]} 67...
Kc6 {[%clk 0:00:05.7]} 68. g8=Q {[%clk 0:00:20.5]} 68... Kc7 {[%clk 0:00:06.6]}
69. h8=Q {[%clk 0:00:21.4]} 69... Kc6 {[%clk 0:00:07.5]} 70. Qfd5+ {[%clk
0:00:20.7]} 70... Kc7 {[%clk 0:00:08.4]} 71. e5 {[%clk 0:00:21.1]} 71... Kb6
{[%clk 0:00:08.6]} 72. f5 {[%clk 0:00:22]} 72... Kc7 {[%clk 0:00:09.5]} 73. e6
{[%clk 0:00:22.9]} 73... Kb6 {[%clk 0:00:10.3]} 74. f6 {[%clk 0:00:23.8]} 74...
Kc7 {[%clk 0:00:11.2]} 75. e7 {[%clk 0:00:24.7]} 75... Kb6 {[%clk 0:00:11.2]}
76. f7 {[%clk 0:00:25.4]} 76... Kc7 {[%clk 0:00:11.3]} 77. e8=Q {[%clk
0:00:25.7]} 77... Kb6 {[%clk 0:00:11.7]} 78. Qfh6+ {[%clk 0:00:25.5]} 78... Kc7
{[%clk 0:00:10.6]} 79. Qhd2 {[%clk 0:00:25.6]} 79... Kb6 {[%clk 0:00:09.9]} 80.
f8=Q {[%clk 0:00:24.9]} 80... Kc7 {[%clk 0:00:10]} 81. Qdd7+ {[%clk 0:00:16.3]}
81... Kb6 {[%clk 0:00:09.1]} 82. Qdd8+ {[%clk 0:00:16.8]} 82... Kb7 {[%clk
0:00:07.7]} 83. Bf3+ {[%clk 0:00:16.4]} 83... Ka6 {[%clk 0:00:07.5]} 84. Qda2#
{[%clk 0:00:16]} 1-0

[Event "Early-Titled-Tuesday-Blitz-August-29-2023"]
[Site "Chess.com"]
[Date "2023.08.29"]
[Round "2"]
[White "jasrom"]
[Black "Itk04"]
[Result "1-0"]
[WhiteElo "2423"]
[BlackElo "2659"]
[TimeControl "180+1"]
[EndTime "8:19:47 PDT"]
[Termination "jasrom won by resignation"]

1. e4 {[%clk 0:02:52.1]} 1... e6 {[%clk 0:02:57.9]} 2. d4 {[%clk 0:02:51.5]}
2... d5 {[%clk 0:02:58.4]} 3. Bd3 {[%clk 0:02:51.6]} 3... dxe4 {[%clk 0:02:58]}
4. Bxe4 {[%clk 0:02:51.4]} 4... Nf6 {[%clk 0:02:58.9]} 5. Bf3 {[%clk 0:02:51.4]}
5... c5 {[%clk 0:02:59.5]} 6. Ne2 {[%clk 0:02:51]} 6... Nc6 {[%clk 0:02:56.2]}
7. Be3 {[%clk 0:02:50.8]} 7... cxd4 {[%clk 0:02:51.3]} 8. Nxd4 {[%clk
0:02:50.6]} 8... Ne5 {[%clk 0:02:47.1]} 9. O-O {[%clk 0:02:49]} 9... Nxf3+
{[%clk 0:02:42.9]} 10. Qxf3 {[%clk 0:02:48.2]} 10... Qd5 {[%clk 0:02:34.5]} 11.
Nc3 {[%clk 0:02:42.2]} 11... Qxf3 {[%clk 0:02:34.5]} 12. Nxf3 {[%clk 0:02:42.2]}
12... a6 {[%clk 0:02:32.2]} 13. Rfd1 {[%clk 0:02:23.7]} 13... Bd7 {[%clk
0:02:28.4]} 14. Ne5 {[%clk 0:02:20.3]} 14... Bb4 {[%clk 0:02:14.3]} 15. Nxd7
{[%clk 0:01:51.6]} 15... Nxd7 {[%clk 0:02:15.2]} 16. Ne4 {[%clk 0:01:46.1]}
16... Rd8 {[%clk 0:01:21]} 17. a3 {[%clk 0:01:22.4]} 17... Be7 {[%clk
0:01:20.2]} 18. Nd6+ {[%clk 0:01:22.4]} 18... Bxd6 {[%clk 0:01:19.2]} 19. Rxd6
{[%clk 0:01:23.3]} 19... Ne5 {[%clk 0:01:11.9]} 20. Rxd8+ {[%clk 0:01:14.6]}
20... Kxd8 {[%clk 0:01:12.8]} 21. Rd1+ {[%clk 0:01:11.8]} 21... Nd7 {[%clk
0:00:56.1]} 22. c4 {[%clk 0:01:06.5]} 22... Ke7 {[%clk 0:00:49.4]} 23. Kf1
{[%clk 0:01:06.2]} 23... Rc8 {[%clk 0:00:48.7]} 24. b3 {[%clk 0:01:06.4]} 24...
e5 {[%clk 0:00:37.9]} 25. Ke2 {[%clk 0:00:54.6]} 25... Ke6 {[%clk 0:00:36.9]}
26. f4 {[%clk 0:00:47.4]} 26... e4 {[%clk 0:00:21.1]} 27. g4 {[%clk 0:00:42.2]}
27... g6 {[%clk 0:00:17.9]} 28. f5+ {[%clk 0:00:40.6]} 28... gxf5 {[%clk
0:00:18.8]} 29. gxf5+ {[%clk 0:00:41.5]} 29... Ke7 {[%clk 0:00:19.7]} 30. Rd5
{[%clk 0:00:30.3]} 30... Rg8 {[%clk 0:00:19.5]} 31. Kf2 {[%clk 0:00:26.4]} 31...
Nf6 {[%clk 0:00:16.1]} 32. Re5+ {[%clk 0:00:18.1]} 32... Kd6 {[%clk 0:00:13.6]}
33. Ra5 {[%clk 0:00:13]} 33... Ng4+ {[%clk 0:00:11.5]} 34. Ke2 {[%clk
0:00:13.3]} 34... Nxe3 {[%clk 0:00:08.3]} 35. Kxe3 {[%clk 0:00:13.3]} 35... Rg2
{[%clk 0:00:08.5]} 36. Kxe4 {[%clk 0:00:08.7]} 36... Re2+ {[%clk 0:00:08.5]} 37.
Kd4 {[%clk 0:00:06.9]} 37... Rd2+ {[%clk 0:00:09.1]} 38. Ke4 {[%clk 0:00:05.8]}
38... Re2+ {[%clk 0:00:09.4]} 39. Kd4 {[%clk 0:00:06.1]} 39... Rxh2 {[%clk
0:00:09.2]} 40. Rd5+ {[%clk 0:00:05.1]} 40... Ke7 {[%clk 0:00:08.4]} 41. Kc5
{[%clk 0:00:04.6]} 41... Rh3 {[%clk 0:00:07.2]} 42. Kb4 {[%clk 0:00:04.1]} 42...
h5 {[%clk 0:00:05.9]} 43. Rc5 {[%clk 0:00:04.3]} 43... Kd7 {[%clk 0:00:06]} 44.
Rd5+ {[%clk 0:00:04.2]} 44... Ke7 {[%clk 0:00:06.6]} 45. Rc5 {[%clk 0:00:04]}
45... Kd6 {[%clk 0:00:06.9]} 46. Rd5+ {[%clk 0:00:04.1]} 46... Kc6 {[%clk
0:00:07.8]} 47. f6 {[%clk 0:00:03.2]} 47... Rf3 {[%clk 0:00:06.4]} 48. Rxh5
{[%clk 0:00:01.7]} 48... Rxf6 {[%clk 0:00:06.8]} 49. Rd5 {[%clk 0:00:01.9]}
49... Rd6 {[%clk 0:00:06.1]} 50. Rf5 {[%clk 0:00:01.2]} 50... Rd7 {[%clk
0:00:03.3]} 51. a4 {[%clk 0:00:02.1]} 51... b6 {[%clk 0:00:03.2]} 52. Rf6+
{[%clk 0:00:02]} 52... Kb7 {[%clk 0:00:03.6]} 53. a5 {[%clk 0:00:02.5]} 53...
bxa5+ {[%clk 0:00:03.7]} 54. Kxa5 {[%clk 0:00:03.4]} 54... Rc7 {[%clk
0:00:01.9]} 55. Rb6+ {[%clk 0:00:03.2]} 55... Kc8 {[%clk 0:00:01.7]} 56. Rxa6
{[%clk 0:00:03.2]} 56... Rc5+ {[%clk 0:00:01.2]} 57. Kb6 {[%clk 0:00:01.9]}
57... Rf5 {[%clk 0:00:01.8]} 58. Ra8+ {[%clk 0:00:02.4]} 58... Kd7 {[%clk
0:00:02]} 59. Ra7+ {[%clk 0:00:02.9]} 59... Kc8 {[%clk 0:00:02.7]} 60. Ra8+
{[%clk 0:00:02.9]} 60... Kd7 {[%clk 0:00:03.2]} 61. c5 {[%clk 0:00:03.3]} 61...
Rf3 {[%clk 0:00:02.8]} 62. b4 {[%clk 0:00:03.1]} 62... f5 {[%clk 0:00:01.9]} 63.
b5 {[%clk 0:00:03.3]} 63... f4 {[%clk 0:00:02]} 64. c6+ {[%clk 0:00:03.6]} 64...
Ke7 {[%clk 0:00:02.9]} 65. c7 {[%clk 0:00:03.7]} 65... Rc3 {[%clk 0:00:03.4]}
66. c8=Q {[%clk 0:00:03.5]} 66... Rxc8 {[%clk 0:00:04.3]} 67. Rxc8 {[%clk
0:00:04.2]} 67... f3 {[%clk 0:00:05.2]} 68. Rc2 {[%clk 0:00:04.2]} 1-0